bitfinex-derivatives/quotes_ETHF0:USTF0_20241129
["timestamp","ask_amount","ask_price","bid_price","bid_amount"]
[1732887467826,5.32777738,3599.4,3599.3,0.02]
[1732887468117,0.69433,3599.3,3598.6,4.29346981]
[1732887468317,2.80280869,3598.7,3598.6,6.08346981]
[1732887468516,2.80280869,3598.7,3598.6,45.09346981]
[1732887469113,2.80280869,3598.7,3598.6,4.29346981]
[1732887469716,6.01060869,3598.7,3598.6,4.31734093]
[1732887470721,5.73282869,3598.7,3598.6,4.59512093]
[1732887470918,2.52502869,3598.7,3598.6,4.59512093]
[1732887471119,2.52502869,3599.6,3598.8,0.69442]
[1732887471326,4.53548,3600.0,3599.3,3.2078]
[1732887471327,2.52502869,3599.5,3599.3,3.2078]
[1732887471526,2.52502869,3599.5,3599.4,0.27772]
[1732887471720,2.52502869,3599.5,3599.4,1.56772]
[1732887472120,2.52502869,3599.5,3599.4,1.61546094]
[1732887472425,3.58052869,3600.1,3599.4,1.33774094]
[1732887472622,6.78832869,3600.1,3599.7,0.07158586]
[1732887472827,0.27768,3600.0,3599.8,40.8]
[1732887473025,0.27768,3599.9,3599.8,40.8]
[1732887473320,6.78832869,3600.1,3600.0,0.27768]
[1732887473625,6.78832869,3600.1,3600.0,0.34926586]
[1732887473929,7.06599869,3600.1,3600.0,0.07158586]
[1732887474124,6.78832869,3600.1,3600.0,0.34926586]
[1732887474525,1.0555,3600.1,3600.0,0.34926586]
[1732887475132,3.20186596,3600.6,3600.1,0.69418]
[1732887475427,3.20186596,3600.6,3600.5,0.27764]
[1732887475630,3.20186596,3600.6,3600.5,0.54158586]
[1732887475829,6.40966596,3600.6,3599.2,3.2078]
[1732887476031,6.40966596,3600.2,3600.1,0.27767]
[1732887476631,3.20186596,3600.2,3600.1,0.27767]
[1732887478432,3.20186596,3600.2,3599.7,4.2893]
[1732887478733,6.40966596,3600.2,3599.7,3.6477]
[1732887478927,0.27768,3600.0,3599.8,0.27768]
[1732887479130,0.27768,3600.0,3599.3,3.2078]
[1732887479329,0.27768,3600.0,3599.9,0.27768]
[1732887481038,0.27771,3599.6,3599.4,0.27772]
[1732887481334,0.27771,3599.6,3599.4,3.26772]
[1732887481535,0.27771,3599.5,3599.4,2.99]
[1732887482234,0.27775,3599.1,3598.9,0.27776]
[1732887482434,0.27776,3598.9,3598.8,0.27777]
[1732887482630,6.40966596,3599.4,3598.5,1.0297]
[1732887482932,3.20186596,3599.4,3599.3,0.27773]
[1732887483234,1.0682,3599.7,3599.3,0.27773]
[1732887483235,2.30197,3600.1,3600.0,0.27768]
[1732887483434,0.2777,3599.8,3599.7,0.2777]
[1732887483624,0.2777,3599.7,3599.6,0.2777]
[1732887484029,2.0243,3600.1,3599.6,0.67]
[1732887484236,0.9983,3600.1,3600.0,0.27768]
[1732887484431,3.20186596,3600.2,3600.0,0.02385386]
[1732887484631,1.0456,3600.5,3600.0,3.23165386]
[1732887484829,1.32324,3600.5,3600.3,0.27765]
[1732887485032,3.20186596,3600.6,3600.0,3.23165386]
[1732887485230,0.27766,3600.3,3600.0,3.23165386]
[1732887485537,0.27766,3600.2,3600.1,0.02385386]
[1732887485839,0.27766,3600.2,3600.1,0.04768181]
[1732887486232,3.47952596,3600.2,3600.1,0.32535181]
[1732887486431,3.20186596,3600.2,3600.1,0.32535181]
[1732887486735,3.47952596,3600.2,3600.1,0.32535181]
[1732887487035,3.20186596,3600.2,3600.1,0.32535181]
[1732887487432,3.47952596,3600.2,3600.1,0.32535181]
[1732887487640,3.47952596,3600.2,3600.1,0.04768181]
[1732887488239,4.25046596,3600.2,3600.1,0.07000112]
[1732887488439,5.50962596,3600.2,3600.1,0.07000112]
[1732887489440,5.50962596,3600.2,3600.1,0.34767112]
[1732887490135,0.6941,3600.6,3600.1,0.34767112]
[1732887490136,3.20186596,3600.6,3600.5,0.27764]
[1732887490445,3.20186596,3600.6,3600.5,0.34764112]
[1732887490645,3.2078,3600.7,3600.5,0.07000112]
[1732887490845,3.47949596,3600.6,3600.5,0.07000112]
[1732887491951,3.20186596,3600.6,3599.5,1.018]
[1732887492142,0.2777,3599.8,3599.7,0.27769]
[1732887492534,2.047,3600.1,3599.7,0.26]
[1732887492842,2.047,3600.1,3599.8,0.27768]
[1732887492843,0.27769,3599.9,3599.8,0.27768]
[1732887493438,0.27768,3600.0,3599.9,0.27768]
[1732887493651,0.27768,3599.9,3599.8,0.27768]
[1732887493948,0.27768,3599.9,3599.8,0.59768]
[1732887494141,2.32467,3600.1,3600.0,0.27768]
[1732887494445,2.047,3600.1,3600.0,0.56768]
[1732887494643,3.2078,3600.2,3600.1,0.27767]
[1732887494842,3.48546,3600.2,3600.1,0.27767]
[1732887495541,3.48546,3600.2,3600.1,0.95767]
[1732887495739,6.68732596,3600.2,3600.1,0.68]
[1732887496144,6.01488987,3600.2,3600.1,0.68]
[1732887499457,7.08488987,3600.2,3600.1,0.68]
[1732887502444,7.08488987,3600.2,3599.6,0.69427]
[1732887502445,4.2778,3600.2,3599.6,0.69427]
[1732887502649,0.27767,3600.1,3599.8,0.27769]
[1732887502843,0.27769,3599.9,3599.8,0.27769]
[1732887503049,2.52942987,3600.0,3599.4,2.099]
[1732887503349,0.27769,3599.9,3599.8,0.27769]
[1732887503747,2.52942987,3600.0,3599.4,2.099]
[1732887503952,0.2777,3599.8,3599.7,0.27769]
[1732887504358,0.27771,3599.5,3599.4,2.37671]
[1732887504545,0.27771,3599.5,3599.4,0.32]
[1732887504950,0.27778,3598.8,3598.7,0.27777]
[1732887507559,1.049,3599.0,3598.6,3.2078]
[1732887507759,0.27777,3598.8,3598.7,0.27777]
[1732887508259,1.049,3599.0,3598.6,3.2078]
[1732887508550,0.27778,3598.7,3598.6,3.48558]
[1732887508947,2.80720987,3598.7,3598.6,3.2078]
[1732887509156,0.2778,3598.4,3598.3,1.0499]
[1732887509753,0.27781,3598.3,3598.2,6.41578222]
[1732887510056,0.27781,3598.3,3598.2,6.67578222]
[1732887511353,0.27781,3598.3,3598.2,6.95359222]
[1732887511558,3.2078,3598.6,3598.2,6.67578222]
[1732887511759,0.27781,3598.4,3598.3,0.2778]
[1732887512058,0.27781,3598.3,3598.2,6.41578222]
[1732887512259,0.27781,3598.3,3598.2,6.99359222]
[1732887512853,0.27781,3598.3,3598.2,6.71578222]
[1732887513053,3.2078,3598.6,3598.2,6.71578222]
[1732887513253,6.78622987,3599.4,3598.2,9.92358222]
[1732887513450,6.78622987,3599.4,3598.6,3.2078]
[1732887513760,6.78622987,3599.4,3599.1,0.27774]
[1732887513761,0.27774,3599.2,3599.1,0.27774]
[1732887514159,1.049,3599.2,3598.8,40.8]
[1732887514357,0.27776,3598.9,3598.8,41.07]
[1732887514655,0.27778,3598.8,3598.7,0.27777]
[1732887515060,1.32678,3598.8,3598.7,0.27777]
[1732887515454,1.049,3598.8,3598.7,0.27777]
[1732887515659,1.32677,3598.8,3598.7,0.27777]
[1732887516262,0.27777,3598.8,3598.7,0.27777]
[1732887516451,1.32677,3598.8,3598.7,0.27777]
[1732887516860,0.27779,3598.6,3598.3,0.27781]
[1732887517165,0.27778,3598.7,3598.6,0.27778]
[1732887517362,1.049,3598.8,3598.2,9.62358222]
[1732887517658,1.32677,3598.8,3598.7,0.27778]
[1732887517964,1.049,3598.8,3598.2,9.62358222]
[1732887518165,0.27778,3598.7,3598.6,0.27778]
[1732887518462,1.32677,3598.8,3598.7,0.27778]
[1732887518963,1.32777,3598.8,3598.7,0.27778]
[1732887519161,0.2778,3598.5,3598.4,0.27779]
[1732887519361,2.80721987,3598.6,3598.5,0.27779]
[1732887519964,0.2778,3598.5,3598.4,0.27779]
[1732887520267,2.52942987,3598.6,3598.4,0.27779]
[1732887520268,2.80721987,3598.6,3598.5,0.27779]
[1732887520564,2.80721987,3598.6,3598.4,0.3]
[1732887520565,0.2778,3598.5,3598.4,0.2778]
[1732887520762,0.2778,3598.5,3598.4,0.31]
[1732887520958,0.2778,3598.5,3598.2,6.41578222]
[1732887520959,0.27781,3598.4,3598.3,0.2778]
[1732887521258,0.27781,3598.4,3598.3,0.5778]
[1732887521658,0.27781,3598.4,3598.3,0.3]
[1732887521854,2.52942987,3598.6,3598.2,6.41578222]
[1732887521855,0.27781,3598.3,3598.2,6.41578222]
[1732887523663,0.26982908,3598.3,3598.2,6.41578222]
[1732887525371,0.26982908,3598.3,3596.5,4.58950897]
[1732887525372,0.27788,3597.4,3597.3,0.27787]
[1732887525671,3.57942987,3597.4,3597.1,42.7422]
[1732887525866,3.85730987,3597.4,3597.3,0.27788]
[1732887526573,3.57942987,3597.4,3597.3,0.27788]
[1732887526964,3.85730987,3597.4,3597.3,0.27788]
[1732887527262,3.57942987,3597.4,3597.3,0.27788]
[1732887527770,3.85730987,3597.4,3597.3,0.27788]
[1732887528063,3.57942987,3597.4,3597.3,0.27788]
[1732887529064,0.27789,3597.3,3597.2,0.27788]
[1732887529269,3.85730987,3597.4,3597.3,0.27788]
[1732887530070,3.57942987,3597.4,3597.3,0.27788]
[1732887530267,3.85730987,3597.4,3597.3,0.27788]
[1732887530466,3.57942987,3597.4,3597.3,0.27788]
[1732887530664,5.73722987,3598.2,3597.4,0.6947]
[1732887530863,5.73722987,3598.2,3598.1,0.27782]
[1732887530864,2.52942987,3598.2,3598.1,0.27782]
[1732887531064,3.57942987,3598.2,3598.1,0.27782]
[1732887532477,2.52942987,3598.2,3598.1,0.27782]
[1732887538970,2.80724987,3598.2,3598.1,0.27782]
[1732887539273,2.80723987,3598.2,3598.1,0.27782]
[1732887539671,2.52942987,3598.2,3598.1,0.27782]
[1732887540873,2.52942987,3598.2,3597.8,1.9471]
[1732887541179,0.27786,3597.6,3597.3,3.2078]
[1732887541375,0.27786,3597.6,3597.5,0.27787]
[1732887541571,0.27786,3597.6,3597.5,0.59787]
[1732887541772,0.27786,3597.7,3597.6,0.27785]
[1732887541974,2.52942987,3597.8,3597.3,3.2078]
[1732887542168,2.52942987,3597.8,3597.7,0.27785]
[1732887542376,1.056,3597.8,3597.4,0.97257]
[1732887542578,1.29463,3598.1,3598.0,0.27783]
[1732887542777,3.50492987,3598.2,3597.7,3.2078]
[1732887542980,1.056,3598.3,3598.2,0.27781]
[1732887543376,1.29459,3598.5,3598.2,1.0059]
[1732887543576,1.29459,3598.5,3598.4,0.2778]
[1732887543876,1.0168,3598.5,3598.3,0.2778]
[1732887544079,1.0168,3598.5,3598.2,1.0059]
[1732887544280,3.76961987,3598.6,3598.5,0.27779]
[1732887544490,2.52942987,3598.6,3598.5,0.27779]
[1732887545680,2.80720987,3598.6,3598.5,0.27779]
[1732887545880,0.2778,3598.4,3598.3,0.2778]
[1732887546080,0.27783,3598.1,3598.0,0.27782]
[1732887546383,0.27783,3598.1,3597.7,4.1601]
[1732887546384,2.52942987,3598.2,3597.7,4.1601]
[1732887546581,0.9932,3598.3,3597.7,4.1378]
[1732887546776,0.27784,3597.9,3597.8,0.27784]
[1732887546970,0.27784,3597.9,3597.8,0.59784]
[1732887547373,0.27784,3597.9,3597.8,0.32]
[1732887547570,0.27784,3597.9,3597.8,0.59785]
[1732887547777,0.9395,3598.1,3598.0,0.27783]
[1732887547977,0.9932,3598.3,3598.2,0.27781]
[1732887548177,0.27782,3598.2,3598.1,0.27782]
[1732887548881,2.32701,3598.3,3598.2,0.27781]
[1732887549083,1.27101,3598.3,3598.2,0.27781]
[1732887549272,2.0492,3598.3,3597.6,3.2078]
[1732887549478,0.27784,3597.9,3597.8,0.27784]
[1732887550183,2.7175,3598.5,3597.8,0.27784]
[1732887550184,3.2078,3599.0,3597.8,5.0]
[1732887550385,0.9999,3599.0,3598.9,0.27776]
[1732887550779,0.9999,3599.0,3598.9,1.27686]
[1732887551480,1.27765,3599.0,3598.9,1.27686]
[1732887551692,0.9999,3599.0,3598.9,1.27686]
[1732887552186,1.27765,3599.0,3598.9,1.27686]
[1732887552486,0.9999,3599.0,3598.9,1.27686]
[1732887553084,0.9999,3599.0,3598.9,42.07686]
[1732887553886,0.9999,3599.0,3598.9,41.07776]
[1732887554183,1.056,3599.2,3599.1,0.27774]
[1732887554380,2.0513,3599.2,3599.1,0.27774]
[1732887554584,3.2078,3600.0,3599.9,0.27768]
[1732887554886,0.27772,3599.5,3599.4,0.27772]
[1732887555088,0.27772,3599.5,3598.9,0.9833]
[1732887555089,0.27775,3599.1,3598.9,0.27776]
[1732887555278,0.27776,3598.9,3598.7,0.27777]
[1732887555482,0.27776,3598.9,3598.3,3.2078]
[1732887555685,0.27778,3598.7,3598.6,0.27778]
[1732887555885,0.9983,3598.9,3598.3,3.2078]
[1732887556086,0.9983,3598.9,3598.8,0.27777]
[1732887556288,0.9983,3598.9,3598.3,3.2078]
[1732887556784,0.9983,3598.9,3598.8,0.27777]
[1732887556785,1.27606,3598.9,3598.8,0.27777]
[1732887557182,0.9983,3598.9,3598.3,3.2078]
[1732887557377,0.27778,3598.7,3598.3,3.2078]
[1732887557579,0.9983,3598.9,3598.3,3.2078]
[1732887557884,0.27778,3598.7,3598.6,0.27778]
[1732887558593,0.9983,3598.9,3598.3,3.2078]
[1732887558781,0.2778,3598.4,3598.3,0.28]
[1732887558981,0.27781,3598.3,3598.2,0.27781]
[1732887559193,1.0212,3598.3,3598.2,0.27781]
[1732887560083,1.056,3599.0,3598.0,0.69458]
[1732887560288,1.056,3599.0,3598.9,0.27776]
[1732887560483,1.056,3599.0,3598.4,3.90229]
[1732887560484,2.0772,3599.1,3599.0,0.27775]
[1732887560679,1.0212,3599.1,3599.0,0.27775]
[1732887560879,0.27771,3599.5,3598.9,3.9022]
[1732887561077,1.056,3599.6,3599.5,0.27771]
[1732887561692,0.27772,3599.5,3599.4,0.27772]
[1732887561888,0.27771,3599.6,3599.4,0.27772]
[1732887562391,0.27771,3599.6,3599.5,0.27771]
[1732887562688,0.2777,3599.7,3599.1,0.69437]
[1732887562992,1.054,3599.7,3599.1,40.8]
[1732887563193,0.27773,3599.3,3599.2,0.27773]
[1732887563387,2.52942987,3599.5,3598.9,3.2078]
[1732887563591,2.52942987,3599.1,3598.1,3.2078]
[1732887563791,3.90221,3598.9,3598.2,0.27781]
[1732887564098,0.27782,3598.1,3598.0,0.27783]
[1732887564292,0.27782,3598.2,3598.1,0.27782]
[1732887564592,2.52942987,3598.7,3598.2,0.27781]
[1732887564593,0.27781,3598.3,3598.2,0.27781]
[1732887564788,1.054,3598.8,3597.7,3.2078]
[1732887564990,0.2778,3598.5,3598.4,0.2778]
[1732887565188,1.054,3598.8,3597.8,0.69461]
[1732887565390,1.054,3598.8,3597.8,2.37461]
[1732887565592,3.2078,3598.9,3598.1,3.2078]
[1732887565894,3.2078,3598.9,3598.5,0.27779]
[1732887565895,0.27779,3598.6,3598.5,0.27779]
[1732887566190,3.2078,3599.4,3598.9,0.27776]
[1732887566392,3.2078,3599.4,3598.9,0.23]
[1732887566590,14.12340657,3599.9,3598.9,0.23]
[1732887566591,2.1015,3599.5,3599.4,0.27772]
[1732887567089,10.8997467,3599.9,3599.8,0.27769]
[1732887567790,10.8997467,3599.9,3599.3,3.2078]
[1732887567990,10.8997467,3599.9,3599.8,0.27769]
[1732887568690,11.1774267,3599.9,3599.8,0.27769]
[1732887568890,10.8997467,3599.9,3599.5,40.8]
[1732887569093,0.2777,3599.7,3599.6,0.2777]
[1732887569495,10.8997467,3599.9,3599.5,40.8]
[1732887569797,3.2078,3600.0,3599.9,0.27768]
[1732887570596,3.48548,3600.0,3599.9,0.27768]
[1732887570896,3.2078,3600.0,3599.9,0.27768]
[1732887571191,0.2777,3599.7,3599.5,40.8]
[1732887571392,3.2078,3600.0,3599.5,0.58771]
[1732887571599,0.27771,3599.6,3599.5,0.58771]
[1732887572096,3.2078,3600.0,3599.4,0.9393]
[1732887572403,0.27771,3599.6,3599.5,0.27771]
[1732887572891,3.2078,3600.0,3599.4,0.9393]
[1732887573399,0.2777,3599.8,3599.6,0.2777]
[1732887573701,0.27769,3599.8,3599.7,0.2777]
[1732887573998,4.2618,3600.0,3599.4,0.9393]
[1732887574194,0.2777,3599.8,3599.6,0.2777]
[1732887574509,4.2618,3600.0,3599.4,0.9393]
[1732887574999,0.27769,3599.9,3599.4,0.9393]
[1732887575200,4.2618,3600.0,3599.7,0.27769]
[1732887575201,0.27769,3599.8,3599.7,0.27769]
[1732887575400,4.2618,3600.0,3599.4,0.9393]
[1732887575703,0.2777,3599.7,3599.6,0.2777]
[1732887575888,4.2618,3600.0,3599.4,0.9393]
[1732887576091,0.27771,3599.6,3599.5,0.27771]
[1732887576298,4.2618,3600.0,3599.4,0.9393]
[1732887576494,0.2777,3599.7,3599.6,0.2777]
[1732887576802,4.2618,3600.0,3599.4,0.9393]
[1732887576997,4.2618,3600.0,3599.9,0.27768]
[1732887577201,4.53948,3600.0,3599.9,0.27768]
[1732887577690,3.2078,3600.0,3599.4,0.9393]
[1732887577898,0.27773,3599.4,3599.3,0.27773]
[1732887578194,0.27773,3599.3,3599.2,0.27773]
[1732887578401,2.0161,3599.3,3599.2,0.27774]
[1732887578997,2.52942987,3599.8,3598.9,3.90221]
[1732887578998,3.49832987,3599.8,3598.9,3.90221]
[1732887579201,0.27771,3599.6,3599.5,0.27771]
[1732887580193,0.27772,3599.5,3599.4,0.27772]
[1732887580495,1.0472,3599.7,3599.0,0.69439]
[1732887580703,0.27772,3599.5,3599.4,0.27772]
[1732887581101,0.27771,3599.6,3599.5,0.27771]
[1732887581904,1.0396,3600.1,3599.6,0.27771]
[1732887582096,2.0034,3600.4,3600.3,0.27765]
[1732887582795,7.63015181,3600.9,3600.2,1.38831]
[1732887582796,10.83795181,3600.9,3600.2,1.38831]
[1732887583102,7.63015181,3600.9,3600.8,0.27761]
[1732887583496,7.90776181,3600.9,3600.8,0.27761]
[1732887583702,7.63015181,3600.9,3600.8,0.27761]
[1732887584201,7.90776181,3600.9,3600.8,0.27761]
[1732887584400,7.63015181,3600.9,3600.8,0.27761]
[1732887584600,7.90776181,3600.9,3600.4,2.0616]
[1732887584813,7.63015181,3600.9,3600.8,0.27761]
[1732887585103,0.9844,3601.0,3600.9,0.27761]
[1732887586303,10.88275439,3601.1,3601.0,0.2776]
[1732887586711,10.88275439,3601.1,3600.6,2.52942987]
[1732887586906,0.27761,3600.9,3600.5,3.2078]
[1732887587103,0.27761,3600.9,3600.8,0.27761]
[1732887587303,10.88275439,3601.1,3600.5,3.2078]
[1732887587606,10.88275439,3601.1,3600.6,0.27762]
[1732887587910,3.2078,3600.9,3600.1,3.2078]
[1732887588108,0.27763,3600.6,3600.5,0.27763]
[1732887588512,0.27764,3600.5,3600.4,0.27764]
[1732887588715,0.27764,3600.6,3600.4,0.27764]
[1732887589003,1.26254,3600.5,3600.4,0.27764]
[1732887589211,0.9849,3600.5,3600.4,0.27764]
[1732887589809,1.26254,3600.5,3600.4,0.27764]
[1732887590017,0.9849,3600.5,3600.4,0.27764]
[1732887590512,3.2078,3600.9,3600.5,0.27763]
[1732887590711,0.27762,3600.8,3600.3,0.27765]
[1732887590916,3.48541,3600.9,3600.8,0.27761]
[1732887591112,3.2078,3600.9,3600.8,0.27761]
[1732887591307,2.379,3601.0,3600.2,3.22358987]
[1732887591504,2.1014,3601.0,3600.2,2.52942987]
[1732887591708,11.16034439,3601.1,3601.0,0.2776]
[1732887591907,10.88275439,3601.1,3601.0,0.2776]
[1732887592909,10.88275439,3601.1,3600.7,40.8]
[1732887593109,10.88275439,3601.1,3601.0,0.2776]
[1732887593513,11.16034439,3601.1,3601.0,0.2776]
[1732887593721,10.88275439,3601.1,3601.0,0.2776]
[1732887594413,8.42075439,3601.1,3601.0,2.80702987]
[1732887594613,1.0119,3601.9,3601.0,4.29942987]
[1732887594918,1.0119,3601.9,3601.8,0.27754]
[1732887595417,7.6048035,3602.1,3602.0,0.27752]
[1732887600014,7.8823235,3602.1,3602.0,0.27752]
[1732887600209,7.6048035,3602.1,3601.9,3.2078]
[1732887600521,0.27758,3601.3,3601.0,3.2078]
[1732887600712,0.69386,3601.8,3601.2,0.27758]
[1732887600912,4.196,3601.9,3601.3,0.27758]
[1732887601123,0.27757,3601.4,3601.3,0.27758]
[1732887601420,0.27757,3601.4,3601.0,3.2078]
[1732887601421,0.27758,3601.3,3601.2,0.27758]
[1732887601717,0.27757,3601.4,3601.2,0.27758]
[1732887601920,0.27758,3601.3,3601.2,0.57758]
[1732887602118,0.27757,3601.4,3601.2,0.57758]
[1732887602314,0.69385,3601.8,3601.2,0.3]
[1732887602519,0.69385,3601.8,3601.0,3.2078]
[1732887602520,4.196,3601.9,3600.8,1.0408]
[1732887602722,4.196,3601.9,3600.8,1.9408]
[1732887602919,0.27758,3601.3,3601.2,0.27758]
[1732887603526,4.196,3601.9,3600.8,1.0408]
[1732887603716,4.196,3601.9,3601.3,0.27757]
[1732887603717,0.27754,3601.8,3601.3,0.27757]
[1732887603913,0.27754,3601.7,3601.3,0.27757]
[1732887604217,0.27757,3601.4,3601.3,0.27757]
[1732887604419,0.27756,3601.5,3601.4,0.27756]
[1732887604620,4.196,3601.9,3601.1,0.69398]
[1732887604819,0.27758,3601.3,3601.1,0.29]
[1732887605122,0.27758,3601.3,3601.0,3.2078]
[1732887605123,0.27764,3600.5,3600.4,0.27764]
[1732887605321,0.27764,3600.6,3600.5,0.27763]
[1732887605523,0.27764,3600.5,3600.4,0.27764]
[1732887605719,0.27763,3600.6,3600.5,0.27763]
[1732887605924,0.969,3601.0,3600.2,3.2078]
[1732887606320,0.27763,3600.7,3600.6,0.27763]
[1732887608227,0.27765,3600.3,3600.2,3.48546]
[1732887608424,0.27765,3600.4,3600.2,3.2078]
[1732887608623,0.27765,3600.4,3600.3,0.27765]
[1732887610624,0.69402,3600.9,3600.2,3.2078]
[1732887610925,0.27765,3600.3,3600.2,3.48546]
[1732887611825,0.27765,3600.4,3600.3,0.27764]
[1732887612332,0.27764,3600.5,3600.4,0.27763]
[1732887612729,0.69402,3600.9,3600.2,3.2078]
[1732887613028,0.27765,3600.4,3600.3,0.27765]
[1732887613225,2.52942987,3600.4,3599.8,44.0078]
[1732887613422,2.52942987,3600.4,3598.5,1.38897]
[1732887613423,0.69416,3600.2,3599.0,2.70018]
[1732887613630,6.2454,3600.3,3599.0,2.70018]
[1732887613631,6.2454,3600.3,3599.0,2.2858]
[1732887613928,1.9722,3600.3,3599.7,2.52942987]
[1732887614135,0.9809,3600.3,3600.2,0.27766]
[1732887614427,0.9809,3600.3,3599.8,2.74833]
[1732887614428,0.9809,3600.3,3599.8,1.0147]
[1732887614631,0.27768,3600.0,3599.9,0.27768]
[1732887615128,0.27768,3600.0,3599.9,40.8]
[1732887615736,0.27768,3600.0,3599.9,41.07768]
[1732887616322,0.27768,3600.0,3599.9,40.8]
[1732887616633,0.27768,3599.9,3599.8,0.27769]
[1732887616938,0.27769,3599.9,3599.8,41.07768]
[1732887617127,0.27768,3599.9,3599.8,41.07768]
[1732887617631,0.27768,3600.1,3599.9,0.27768]
[1732887617827,0.27768,3600.0,3599.9,0.27768]
[1732887618127,0.27768,3599.9,3599.8,41.07769]
[1732887618530,0.27768,3599.9,3599.8,40.8]
[1732887620023,0.27768,3599.9,3599.8,41.07769]
[1732887620424,0.27768,3600.0,3599.9,0.27768]
[1732887620831,0.27768,3599.9,3599.8,41.07769]
[1732887621525,0.27768,3599.9,3599.8,40.8]
[1732887621725,0.27772,3599.5,3599.4,0.27772]
[1732887621928,0.27773,3599.4,3599.3,0.27772]
[1732887622137,1.25133,3599.4,3599.3,0.27772]
[1732887622538,0.9736,3599.4,3599.3,0.27772]
[1732887623132,1.25132,3599.4,3599.3,0.27772]
[1732887623333,0.9736,3599.4,3599.1,3.2078]
[1732887623538,0.27774,3599.3,3599.2,0.27773]
[1732887623736,0.27774,3599.1,3599.0,1.29244]
[1732887623934,0.27774,3599.3,3599.2,0.27773]
[1732887624129,0.27774,3599.3,3599.0,1.0147]
[1732887624130,0.27774,3599.2,3599.1,0.27774]
[1732887625636,0.27774,3599.1,3599.0,1.29245]
[1732887626035,0.27777,3598.9,3598.8,0.27776]
[1732887626239,0.27776,3599.0,3598.9,0.27775]
[1732887626540,0.27776,3599.0,3598.9,0.56775]
[1732887628243,0.27774,3599.2,3599.1,0.27774]
[1732887628650,0.9736,3599.4,3598.6,0.69445]
[1732887628845,0.27775,3599.1,3599.0,0.27775]
[1732887629245,0.27775,3599.1,3599.0,41.07775]
[1732887629749,0.27777,3598.8,3598.7,0.27777]
[1732887630350,5.1466,3599.1,3598.5,0.27778]
[1732887630351,0.27778,3598.6,3598.5,0.27778]
[1732887632954,3.2078,3599.1,3598.4,1.0083]
[1732887633153,0.9736,3599.4,3598.5,3.90229]
[1732887633360,0.27774,3599.3,3599.2,0.27773]
[1732887633657,0.9736,3599.4,3598.9,3.2078]
[1732887633861,1.25133,3599.4,3599.3,0.27773]
[1732887634654,0.27773,3599.4,3599.3,0.27773]
[1732887634948,0.27773,3599.3,3599.2,0.27773]
[1732887635153,3.2078,3599.5,3599.1,1.0013]
[1732887635355,0.27774,3599.2,3599.1,1.27904]
[1732887635555,0.27773,3599.3,3599.2,0.27773]
[1732887635752,3.2078,3599.5,3599.4,0.27772]
[1732887636658,3.2078,3600.0,3599.4,0.15]
[1732887636857,3.2078,3600.0,3599.9,0.27768]
[1732887637763,3.48548,3600.0,3599.9,0.27768]
[1732887638066,0.27769,3599.9,3599.8,0.27769]
[1732887638957,0.27768,3599.9,3599.8,0.27769]
[1732887639165,0.27773,3599.4,3599.3,0.27772]
[1732887639356,0.27773,3599.4,3599.1,1.0013]
[1732887639357,2.52942987,3599.7,3599.1,1.0013]
[1732887639557,3.2078,3600.0,3599.9,0.27768]
[1732887639760,0.27766,3600.2,3600.1,0.27766]
[1732887640264,0.27767,3600.1,3600.0,0.27767]
[1732887640564,0.27768,3600.0,3599.9,0.27768]
[1732887640764,0.27768,3599.9,3599.8,1.23719]
[1732887641567,2.80709987,3600.1,3600.0,0.27768]
[1732887641761,0.27767,3600.1,3600.0,0.27768]
[1732887641956,0.27764,3600.4,3600.1,0.27766]
[1732887642252,0.27766,3600.2,3600.1,0.27766]
[1732887642460,3.2078,3600.5,3599.8,0.9595]
[1732887642658,2.52942987,3600.3,3599.8,0.9595]
[1732887642860,3.2078,3600.1,3599.7,0.27769]
[1732887643168,2.52942987,3599.9,3599.4,0.9846]
[1732887643367,0.27771,3599.5,3599.4,1.26232]
[1732887643562,0.27771,3599.5,3599.4,0.9846]
[1732887643767,0.27774,3599.3,3599.2,0.27773]
[1732887643963,0.2777,3599.7,3599.2,0.32]
[1732887644166,0.94,3599.8,3599.5,0.27771]
[1732887644167,0.27771,3599.6,3599.5,0.27771]
[1732887644361,0.94,3599.8,3599.1,4.1763]
[1732887644563,0.27774,3599.2,3599.1,1.54624]
[1732887644769,0.27774,3599.3,3599.2,0.27773]
[1732887644960,0.27774,3599.3,3599.2,0.57773]
[1732887645264,0.27777,3598.8,3598.7,1.26237]
[1732887645868,0.27777,3598.8,3598.7,42.06237]
[1732887646168,0.27776,3598.9,3598.8,0.27776]
[1732887646567,0.9576,3599.0,3598.7,0.9846]
[1732887646865,0.27777,3598.8,3598.7,1.26237]
[1732887647658,0.27777,3598.8,3598.7,0.9846]
[1732887647858,0.27777,3598.8,3598.7,1.26238]
[1732887648062,0.27777,3598.8,3598.7,0.9846]
[1732887649169,0.2778,3598.5,3598.4,0.27779]
[1732887649472,0.2778,3598.5,3598.4,0.57779]
[1732887649674,0.2778,3598.5,3598.4,41.37779]
[1732887650362,0.27779,3598.6,3598.5,0.27778]
[1732887651466,0.27778,3598.7,3598.6,0.27778]
[1732887651668,0.27776,3598.9,3598.8,0.27777]
[1732887652164,0.27778,3598.7,3598.6,0.27778]
[1732887652371,0.9576,3599.0,3598.3,3.2078]
[1732887652571,0.2778,3598.5,3598.4,0.27779]
[1732887652772,0.27779,3598.6,3598.5,0.27779]
[1732887653472,0.27778,3598.7,3598.5,0.27779]
[1732887653772,0.9576,3599.0,3598.4,40.8]
[1732887653969,0.27779,3598.6,3598.5,0.27779]
[1732887654267,0.27778,3598.7,3598.6,0.27778]